bitfinex-derivatives/quotes_SOLF0:USTF0_20250623
["timestamp","ask_amount","ask_price","bid_price","bid_amount"]
[1750692849425,2.3594,134.46,134.39,12.33541613]
[1750692849921,2.3594,134.46,134.41,7.4367]
[1750692850125,7.4354,134.44,134.39,12.33541613]
[1750692850312,2.3594,134.46,134.41,7.4365]
[1750692850725,7.4354,134.44,134.41,7.4365]
[1750692850920,2.3594,134.46,134.4,7.4369]
[1750692851223,7.4361,134.43,134.4,7.4369]
[1750692851423,7.4361,134.43,134.4,7.437]
[1750692851725,2.3594,134.46,134.39,12.33541613]
[1750692852324,2.3594,134.46,134.38,44.82]
[1750692852521,2.3594,134.46,134.39,12.33541613]
[1750692852827,7.436,134.43,134.39,12.33541613]
[1750692853520,7.436,134.43,134.4,7.4369]
[1750692854222,7.4366,134.42,134.38,57.15541613]
[1750692854426,14.69481613,134.46,134.38,57.15541613]
[1750692854634,699.41541613,134.48,134.4,12.33541613]
[1750692854817,687.08,134.48,134.42,12.33541613]
[1750692855017,44.82,134.48,134.42,12.33541613]
[1750692855312,7.4338,134.47,134.42,12.33541613]
[1750692855725,7.4338,134.47,134.44,7.4348]
[1750692855927,7.4344,134.46,134.42,12.33541613]
[1750692856323,7.4344,134.46,134.43,7.4356]
[1750692856525,7.4338,134.47,134.42,12.33541613]
[1750692856717,44.82,134.48,134.43,7.4354]
[1750692856918,44.82,134.48,134.42,12.33541613]
[1750692857925,7.4337,134.47,134.44,7.4348]
[1750692858123,44.82,134.48,134.42,12.33541613]
[1750692858325,52.2531,134.48,134.45,7.4343]
[1750692858623,52.2531,134.48,134.43,2.4332]
[1750692858624,236.91093069,134.5,134.44,12.33541613]
[1750692858824,7.4332,134.48,134.46,7.434]
[1750692859223,234.56683069,134.5,134.44,12.33541613]
[1750692859625,246.90224682,134.5,134.43,2.4332]
[1750692860125,12.33541613,134.48,134.4,21.53326623]
[1750692860329,44.8,134.47,134.4,12.33541613]
[1750692860526,7.4359,134.43,134.4,19.77231613]
[1750692860928,44.8,134.47,134.4,12.33541613]
[1750692861130,44.8,134.47,134.41,7.4365]
[1750692864029,44.8,134.47,134.4,12.33541613]
[1750692864630,44.8,134.47,134.44,7.4349]
[1750692865237,52.2338,134.47,134.44,7.4349]
[1750692865534,52.2338,134.47,134.42,12.33541613]
[1750692866027,291.40224682,134.5,134.42,12.33541613]
[1750692866428,7.4355,134.44,134.41,7.4365]
[1750692866637,12.33541613,134.48,134.39,68.67926623]
[1750692867627,7.4355,134.44,134.39,68.67926623]
[1750692867825,279.06683069,134.5,134.39,68.67926623]
[1750692868031,12.33541613,134.48,134.39,68.67926623]
[1750692868232,17.90546463,134.48,134.39,68.67926623]
[1750692868532,12.33541613,134.48,134.39,68.67926623]
[1750692868726,17.90546463,134.48,134.39,68.67926623]
[1750692868932,7.4359,134.43,134.41,7.4365]
[1750692869334,12.33541613,134.48,134.39,68.67926623]
[1750692869530,17.90636115,134.48,134.39,59.48141613]
[1750692869737,17.90636115,134.48,134.39,71.15816623]
[1750692869939,12.33541613,134.48,134.39,71.15816623]
[1750692870142,7.4356,134.44,134.39,71.15816623]
[1750692870635,17.90782718,134.48,134.4,7.4371]
[1750692870939,12.33541613,134.48,134.39,71.15816623]
[1750692871140,7.436,134.43,134.41,7.4365]
[1750692871443,17.90937525,134.48,134.39,71.15816623]
[1750692871642,12.33541613,134.48,134.39,71.15816623]
[1750692871836,7.4349,134.45,134.42,7.4357]
[1750692872234,7.4343,134.46,134.43,7.4354]
[1750692872536,291.40224682,134.5,134.41,12.33541613]
[1750692872850,12.33391332,134.63,134.48,24.66782664]
[1750692873043,13.69028945,134.68,134.55,12.33391332]
[1750692873044,8.0451468,134.62,134.55,12.33391332]
[1750692873238,2.4643,134.62,134.56,7.4281]
[1750692873438,2.4643,134.62,134.55,56.83391332]
[1750692873636,12.33391332,134.61,134.5,642.28]
[1750692873844,14.78191332,134.61,134.52,12.33391332]
[1750692874046,59.28191332,134.61,134.54,12.33391332]
[1750692874237,14.78191332,134.61,134.54,12.33391332]
[1750692874438,14.78191332,134.61,134.55,7.4287]
[1750692874439,7.4272,134.59,134.55,7.4287]
[1750692875648,7.4272,134.59,134.56,7.4284]
[1750692875945,7.4272,134.59,134.54,12.33391332]
[1750692876140,2.448,134.61,134.57,7.4275]
[1750692876739,7.4266,134.6,134.57,7.4275]
[1750692877950,7.4266,134.6,134.56,19.76211332]
[1750692878155,2.448,134.61,134.55,44.5]
[1750692878450,2.448,134.61,134.55,12.31260659]
[1750692878656,7.4268,134.6,134.55,12.31260659]
[1750692878837,2.448,134.61,134.55,12.31260659]
[1750692879148,7.427,134.59,134.56,7.4282]
[1750692879446,2.448,134.61,134.55,12.31260659]
[1750692879643,7.4252,134.62,134.59,7.4265]
[1750692879840,44.5,134.64,134.57,12.31260659]
[1750692880044,56.81260659,134.64,134.57,12.31260659]
[1750692880246,7.4263,134.6,134.57,19.74030659]
[1750692880441,7.4263,134.6,134.57,7.4277]
[1750692880640,12.31260659,134.62,134.54,56.81260659]
[1750692880943,7.4272,134.59,134.56,7.4284]
[1750692884749,7.4274,134.58,134.54,56.81260659]
[1750692885253,7.4271,134.59,134.55,7.4288]
[1750692885949,7.4274,134.58,134.55,7.4288]
[1750692886849,12.31260659,134.6,134.53,12.31260659]
[1750692887039,12.31260659,134.6,134.52,56.79260659]
[1750692887240,2.3015,134.59,134.52,56.79260659]
[1750692887545,7.4282,134.57,134.54,7.4295]
[1750692887746,2.3015,134.59,134.54,7.4295]
[1750692888253,2.3015,134.59,134.52,56.79260659]
[1750692888752,2.3015,134.59,134.55,7.4289]
[1750692889050,59.16090659,134.6,134.54,12.31260659]
[1750692889051,46.8483,134.6,134.54,12.31260659]
[1750692889447,7.4272,134.59,134.56,7.4282]
[1750692889749,46.8483,134.6,134.54,12.31260659]
[1750692891054,46.8483,134.6,134.52,44.48]
[1750692891251,7.4278,134.58,134.54,7.4291]
[1750692892050,7.4278,134.58,134.55,7.429]
[1750692893750,7.4283,134.57,134.54,7.4294]
[1750692894150,7.4283,134.57,134.55,7.4289]
[1750692894457,7.4276,134.58,134.55,7.4289]
[1750692894847,7.428,134.57,134.54,15.51228819]
[1750692895250,54.93128819,134.6,134.54,15.51228819]
[1750692895457,7.4285,134.56,134.54,15.51228819]
[1750692895660,54.93128819,134.6,134.55,7.429]
[1750692895855,54.93128819,134.6,134.54,8.08298819]
[1750692896364,54.93128819,134.6,134.54,15.51228819]
[1750692897259,7.4283,134.57,134.54,15.51228819]
[1750692897458,7.4283,134.57,134.55,7.429]
[1750692898156,7.4273,134.59,134.56,7.4282]
[1750692898356,54.93128819,134.6,134.56,7.4282]
[1750692898861,7.4275,134.58,134.56,7.4282]
[1750692899855,7.4275,134.58,134.55,7.4288]
[1750692900458,7.4275,134.58,134.56,7.4284]
[1750692900860,54.69388819,134.63,134.56,52.24298819]
[1750692901360,7.4258,134.61,134.58,7.4272]
[1750692901951,8.08298819,134.62,134.57,7.4277]
[1750692902149,8.08298819,134.62,134.56,44.16]
[1750692902353,8.08298819,134.62,134.54,8.08298819]
[1750692902851,7.4274,134.58,134.56,7.4282]
[1750692903058,46.6109,134.63,134.54,8.08298819]
[1750692903363,54.69388819,134.63,134.58,8.08298819]
[1750692903866,8.08298819,134.61,134.54,8.08298819]
[1750692904455,8.08298819,134.61,134.56,8.08298819]
[1750692904957,7.4271,134.59,134.57,7.4279]
[1750692905161,8.08298819,134.61,134.56,8.08298819]
[1750692905361,7.4277,134.58,134.56,15.51118819]
[1750692905562,7.4277,134.58,134.56,8.08298819]
[1750692905963,8.08298819,134.59,134.51,6.9771]
[1750692906266,8.08298819,134.59,134.52,52.24298819]
[1750692906462,10.45258819,134.6,134.54,8.08298819]
[1750692906768,10.45258819,134.6,134.55,7.4287]
[1750692906959,10.45258819,134.6,134.54,8.08298819]
[1750692907262,2.3696,134.6,134.54,8.08298819]
[1750692907658,8.08298819,134.59,134.52,52.24298819]
[1750692907864,10.58678819,134.59,134.52,52.24298819]
[1750692908167,54.74678819,134.59,134.52,52.24298819]
[1750692908561,7.4295,134.55,134.52,52.24298819]
[1750692908961,8.08298819,134.58,134.52,52.24298819]
[1750692909269,46.6638,134.59,134.52,52.24298819]
[1750692909460,54.74678819,134.59,134.52,52.24298819]
[1750692909655,44.16,134.59,134.52,52.24298819]
[1750692909860,52.24298819,134.62,134.54,8.08298819]
[1750692910371,7.4271,134.59,134.56,7.428]
[1750692910871,52.24298819,134.62,134.55,7.4289]
[1750692911069,8.08298819,134.6,134.55,7.4289]
[1750692912066,7.4283,134.57,134.54,7.4293]
[1750692912369,8.08298819,134.59,134.54,7.4293]
[1750692912773,8.08298819,134.59,134.53,15.51278819]
[1750692912972,8.08298819,134.59,134.53,8.08298819]
[1750692913475,7.4285,134.57,134.54,7.4293]
[1750692914073,7.4285,134.57,134.55,7.429]
[1750692915275,7.4285,134.57,134.54,7.4293]
[1750692916173,7.4286,134.56,134.54,7.4293]
[1750692916369,8.08298819,134.59,134.54,7.4293]
[1750692917376,8.08298819,134.59,134.55,7.4289]
[1750692917560,7.4281,134.57,134.55,7.4289]
[1750692917765,8.08298819,134.59,134.53,17.3296337]
[1750692917966,8.08298819,134.59,134.54,7.4293]
[1750692918167,7.4283,134.57,134.54,7.4293]
[1750692919972,7.4283,134.57,134.55,7.429]
[1750692920176,7.4283,134.57,134.53,17.3296337]
[1750692921376,7.4283,134.57,134.54,7.4293]
[1750692922581,7.4277,134.58,134.53,17.3296337]
[1750692922777,8.08298819,134.61,134.54,9.24664551]
[1750692923576,8.08298819,134.61,134.55,7.4288]
[1750692924076,7.4277,134.58,134.55,7.4288]
[1750692925075,7.4271,134.59,134.56,7.4284]
[1750692925276,8.08298819,134.61,134.55,8.08298819]
[1750692925475,44.16,134.62,134.55,17.3296337]
[1750692925671,44.16,134.62,134.58,7.427]
[1750692926079,44.16,134.62,134.56,9.24664551]
[1750692926380,7.426,134.61,134.58,7.4268]
[1750692926565,44.16,134.62,134.57,17.3296337]
[1750692926762,51.90298819,134.65,134.57,17.3296337]
[1750692927173,51.90298819,134.65,134.61,7.4257]
[1750692927375,51.90298819,134.65,134.59,8.08298819]
[1750692927578,7.4251,134.63,134.59,8.08298819]
[1750692928481,43.82,134.65,134.59,8.08298819]
[1750692929085,43.82,134.65,134.61,7.4255]
[1750692929279,43.82,134.65,134.58,9.24664551]
[1750692929482,7.4265,134.6,134.57,16.67424551]
[1750692929784,8.08298819,134.59,134.52,9.24664551]
[1750692930084,8.08298819,134.57,134.52,9.24664551]
[1750692930387,8.08298819,134.55,134.52,9.24664551]
[1750692930575,7.4305,134.53,134.5,658.95824551]
[1750692930777,7.4305,134.53,134.5,651.52664551]
[1750692931074,7.4305,134.53,134.5,658.95834551]
[1750692931289,7.4295,134.55,134.5,651.52664551]
[1750692931490,51.88298819,134.57,134.51,9.24664551]
[1750692931672,51.88298819,134.57,134.51,7.4308]
[1750692931981,7.4299,134.54,134.51,7.4308]
[1750692932183,8.08298819,134.56,134.5,667.0411337]
[1750692932382,7.4304,134.53,134.5,658.95814551]
[1750692932585,8.08298819,134.56,134.5,651.52664551]
[1750692932778,8.08298819,134.54,134.5,642.28]
[1750692932975,7.431,134.52,134.49,60.47884551]
[1750692934088,8.08298819,134.54,134.49,60.47884551]
[1750692934089,7.4313,134.51,134.49,43.8]
[1750692934287,8.08298819,134.52,134.47,9.24664551]
[1750692934585,15.51518819,134.5,134.47,7.4334]
[1750692934785,8.08298819,134.5,134.45,55.55234551]
[1750692934979,8.08298819,134.46,134.43,9.24664551]
[1750692935180,8.08298819,134.46,134.42,9.24664551]
[1750692935385,7.435,134.45,134.42,7.436]
[1750692935884,8.08298819,134.46,134.42,7.4359]
[1750692935885,15.51748819,134.46,134.42,7.4359]
[1750692936183,43.82,134.51,134.42,17.3296337]
[1750692936484,7.4333,134.48,134.44,7.4348]
[1750692936676,8.08298819,134.5,134.42,8.08298819]
[1750692936873,8.08298819,134.46,134.41,2.5096]
[1750692937078,7.4362,134.43,134.4,10.48398819]
[1750692937376,7.4362,134.43,134.4,8.08298819]
[1750692937577,8.08298819,134.44,134.38,8.08298819]
[1750692938076,7.4359,134.43,134.39,7.4375]
[1750692938277,15.34638819,134.46,134.4,8.08298819]
[1750692938481,15.34638819,134.46,134.37,9.24664551]
[1750692938686,8.08298819,134.44,134.38,8.08298819]
[1750692939085,8.08298819,134.44,134.36,51.0457]
[1750692939285,8.08298819,134.42,134.36,54.41258819]
[1750692939485,8.08298819,134.42,134.34,650.88664551]
[1750692939486,7.4388,134.38,134.33,46.2259]
[1750692939786,8.08298819,134.4,134.34,15.52328819]
[1750692940183,8.08298819,134.4,134.34,8.08298819]
[1750692940378,12.35472528,134.41,134.33,58.58062528]
[1750692940584,7.4384,134.39,134.35,7.4397]
[1750692941682,7.4384,134.39,134.36,7.4394]
[1750692942085,7.4384,134.39,134.33,58.58062528]
[1750692942584,56.19472528,134.43,134.35,12.35472528]
[1750692943685,56.19472528,134.43,134.38,7.4381]
[1750692944085,51.2758,134.43,134.4,7.4372]
[1750692944481,51.1234,134.46,134.39,12.35472528]
[1750692944786,51.1234,134.46,134.41,7.4368]
[1750692944787,7.4354,134.44,134.41,7.4368]
[1750692944987,51.1234,134.46,134.39,12.35472528]
[1750692945188,7.4362,134.43,134.39,19.79232528]
[1750692945784,7.4362,134.43,134.39,12.35472528]
[1750692945991,7.4363,134.42,134.39,12.35472528]
[1750692946191,63.47812528,134.46,134.39,12.35472528]
[1750692946581,51.1234,134.46,134.41,7.4368]
[1750692946884,51.1234,134.46,134.39,12.35472528]
[1750692947094,7.4352,134.44,134.41,7.4366]
[1750692947482,51.1234,134.46,134.39,12.35472528]
[1750692947688,7.4352,134.44,134.4,7.4372]
[1750692947889,51.1234,134.46,134.4,7.4372]
[1750692948587,63.47812528,134.46,134.41,7.4367]
[1750692948784,51.1234,134.46,134.39,12.35472528]
[1750692949084,56.21472528,134.48,134.41,12.35472528]
[1750692949394,56.21472528,134.48,134.43,7.4354]
[1750692949590,7.434,134.46,134.43,7.4354]
[1750692949793,43.86,134.48,134.46,7.4339]
[1750692950089,43.86,134.48,134.37,2.4225]
[1750692950090,2.3179,134.5,134.45,12.35472528]
[1750692950291,7.4327,134.49,134.45,12.35472528]
[1750692950497,641.82,134.51,134.45,12.35472528]
[1750692950795,7.4319,134.5,134.45,12.35472528]
[1750692951096,43.86,134.52,134.47,12.35472528]
[1750692951785,46.1779,134.55,134.47,56.21472528]
[1750692952091,7.4311,134.52,134.47,56.21472528]
[1750692952596,46.1779,134.55,134.48,7.4328]
[1750692952893,46.1779,134.55,134.47,56.21472528]
[1750692953293,7.4305,134.53,134.49,7.4322]
[1750692953593,46.1779,134.55,134.47,56.21472528]
[1750692954893,7.4314,134.51,134.48,7.4326]
[1750692956194,7.4314,134.51,134.47,63.64792528]
[1750692956400,12.35472528,134.54,134.47,43.86]
[1750692956598,12.35472528,134.52,134.45,12.35472528]
[1750692956793,12.35472528,134.52,134.45,19.78892528]
[1750692957001,43.52,134.51,134.44,45.9605]
[1750692957204,12.35472528,134.5,134.44,43.52]
[1750692957498,12.35472528,134.5,134.43,19.78992528]
[1750692957897,2.4207,134.49,134.42,7.436]
[1750692958498,7.4348,134.45,134.42,7.436]
[1750692959400,43.52,134.47,134.41,50.9565]
[1750692959902,43.52,134.47,134.41,43.52]
[1750692960103,43.52,134.47,134.42,12.35472528]
[1750692960415,7.4343,134.46,134.42,19.79052528]
[1750692961303,43.52,134.47,134.42,12.35472528]
[1750692961809,7.4338,134.47,134.44,7.4348]
[1750692962106,2.4207,134.49,134.42,12.35472528]
[1750692962306,7.4339,134.47,134.44,7.4348]
[1750692962900,2.4207,134.49,134.45,7.4345]
[1750692963310,43.52,134.5,134.44,12.35472528]
[1750692963509,7.4327,134.49,134.46,7.4337]
[1750692964109,43.52,134.5,134.44,12.35472528]
[1750692964810,7.4334,134.48,134.45,7.4345]
[1750692965308,43.52,134.5,134.44,12.35472528]
[1750692965509,7.4338,134.47,134.44,19.78972528]
[1750692965711,55.87472528,134.5,134.42,14.84872528]
[1750692965906,2.4498,134.49,134.42,2.494]
[1750692966208,12.35472528,134.46,134.38,2.2699]
[1750692966409,43.52,134.45,134.38,2.2699]
[1750692966612,43.52,134.45,134.39,12.35472528]
[1750692967111,7.4357,134.43,134.4,7.4369]
[1750692967612,43.52,134.45,134.39,12.35472528]
[1750692967810,43.52,134.48,134.39,12.35472528]
[1750692968112,43.52,134.48,134.41,12.35472528]
[1750692968313,43.52,134.48,134.41,55.87472528]
[1750692969400,7.4349,134.45,134.42,7.4359]
[1750692969609,7.4349,134.45,134.41,55.87472528]
[1750692969815,7.4344,134.46,134.43,7.4354]
[1750692970016,7.4344,134.46,134.41,55.87472528]
[1750692970511,7.4344,134.46,134.43,7.4354]
[1750692970712,7.4346,134.45,134.41,55.87472528]
[1750692971111,7.4344,134.46,134.43,7.4356]
[1750692971411,43.52,134.48,134.41,55.87472528]
[1750692971611,43.52,134.48,134.43,12.35472528]
[1750692971820,43.52,134.48,134.44,7.4349]
[1750692971821,7.4339,134.47,134.44,7.4349]
[1750692972117,43.52,134.48,134.43,12.35472528]
[1750692972308,7.4343,134.46,134.43,12.35472528]
[1750692972911,7.4343,134.46,134.44,7.4351]
[1750692973313,43.52,134.48,134.41,43.52]
[1750692973714,7.4352,134.44,134.41,43.52]
[1750692974113,12.35472528,134.47,134.41,43.52]
[1750692974312,43.52,134.48,134.37,4.9737]
[1750692974313,7.4362,134.42,134.38,45.7899]
[1750692974619,12.35472528,134.45,134.38,45.7899]
[1750692974804,7.436,134.43,134.4,7.437]
[1750692975007,43.52,134.48,134.39,12.35472528]
[1750692975221,12.35472528,134.47,134.39,12.35472528]
[1750692975809,12.35472528,134.47,134.41,7.4368]
[1750692976015,12.35472528,134.47,134.39,12.35472528]
[1750692976518,55.87472528,134.48,134.39,12.35472528]
[1750692976709,55.87472528,134.48,134.41,12.35472528]
[1750692976905,7.4346,134.45,134.41,12.35472528]
[1750692977318,55.87472528,134.48,134.41,12.35472528]
[1750692977519,7.4354,134.44,134.41,19.79102528]
[1750692977716,7.4354,134.44,134.41,12.35472528]
[1750692978518,7.4348,134.45,134.41,12.35472528]
[1750692978721,12.35472528,134.46,134.38,43.52]
[1750692978912,12.35472528,134.44,134.38,43.52]
[1750692979114,55.87472528,134.44,134.36,12.35472528]
[1750692979314,12.35472528,134.42,134.35,688.3088]
[1750692979918,7.4385,134.38,134.36,7.4393]
[1750692980222,12.35472528,134.42,134.36,7.4393]
[1750692980415,12.35472528,134.42,134.35,688.3088]
[1750692980615,12.35472528,134.42,134.35,46.0088]
[1750692981111,12.35472528,134.4,134.35,43.52]
[1750692981309,4.996,134.43,134.35,43.52]
[1750692981617,12.35472528,134.42,134.35,12.35472528]
[1750692981920,7.4376,134.4,134.37,7.4386]
[1750692982323,12.35472528,134.42,134.35,12.35472528]
[1750692982511,7.4374,134.4,134.37,7.4388]
[1750692982916,12.35472528,134.42,134.37,7.4388]
[1750692983213,12.35472528,134.42,134.35,12.35472528]
[1750692983415,4.996,134.43,134.35,12.35472528]
[1750692983614,7.4359,134.43,134.37,12.35472528]
[1750692983816,7.4359,134.43,134.4,7.4372]
[1750692984115,43.52,134.44,134.39,12.35472528]
[1750692984321,7.4354,134.44,134.39,12.35472528]
[1750692984521,12.35472528,134.46,134.41,7.4363]
[1750692984721,7.4355,134.44,134.41,7.4363]
[1750692984917,12.35472528,134.46,134.41,7.4363]
[1750692985112,12.35472528,134.46,134.39,7.4375]
[1750692985915,7.4369,134.41,134.39,7.4375]
[1750692986514,12.35472528,134.46,134.39,7.4375]
[1750692986515,7.4365,134.42,134.39,7.4375]
[1750692987114,7.4368,134.41,134.39,7.4375]
[1750692987425,12.35472528,134.45,134.38,7.4382]
[1750692987920,12.35472528,134.43,134.36,55.87472528]
[1750692988117,55.55472528,134.43,134.36,55.87472528]
[1750692988318,7.4377,134.4,134.37,7.4387]
[1750692988617,8.10510237,134.42,134.33,16.21774551]
[1750692988821,8.10510237,134.4,134.34,8.10510237]
[1750692989118,4.6442,134.41,134.34,8.10510237]
[1750692989323,2.3625,134.41,134.36,8.10510237]
[1750692989822,7.4376,134.4,134.37,7.4386]
[1750692990224,7.438,134.39,134.37,7.4389]
[1750692990920,2.3625,134.41,134.35,12.35029]
[1750692991222,47.947,134.45,134.37,12.35029]
[1750692991416,12.35029,134.44,134.37,62.98889]
[1750692991613,12.35029,134.44,134.37,43.2]
[1750692992026,7.4371,134.41,134.38,7.4384]
[1750692992419,12.35029,134.44,134.38,7.4384]
[1750692993125,7.4373,134.41,134.38,7.4384]
[1750692993826,7.4374,134.4,134.38,7.4384]
[1750692994331,7.4371,134.41,134.38,7.4384]
[1750692994927,7.4375,134.4,134.38,7.4384]
[1750692995531,7.4379,134.39,134.37,50.6387]
[1750692995830,12.35029,134.42,134.34,43.2]
[1750692996130,7.4385,134.38,134.35,7.4398]
[1750692996328,43.2,134.41,134.34,43.2]
[1750692996728,7.4388,134.38,134.34,43.2]
[1750692997327,7.4388,134.38,134.35,7.4398]
[1750692997525,7.4379,134.39,134.34,43.2]
[1750692997836,55.55029,134.44,134.35,12.35029]
[1750692998028,7.4372,134.41,134.38,7.4382]
[1750692998332,7.4372,134.41,134.37,12.35029]
[1750692998525,7.4372,134.41,134.38,7.4381]
[1750692998928,7.4364,134.42,134.4,7.4372]
[1750692999133,43.2,134.44,134.4,7.4372]
[1750692999932,7.4358,134.43,134.4,7.4372]
[1750693000133,43.2,134.44,134.39,7.4377]
[1750693000338,7.4371,134.41,134.37,12.35029]
[1750693000526,12.35029,134.42,134.35,24.07223551]
[1750693000833,12.35029,134.42,134.36,7.4393]
[1750693001227,12.35029,134.42,134.34,59.88704551]
[1750693001530,7.4391,134.37,134.34,43.2]
[1750693002038,7.4391,134.37,134.35,7.4398]
[1750693002535,7.4387,134.38,134.36,7.4396]
[1750693003133,58.0706,134.44,134.34,43.2]
[1750693003134,12.35029,134.43,134.37,7.439]
[1750693003337,12.35029,134.43,134.35,21.59693551]
[1750693003841,7.4376,134.4,134.37,7.4385]
[1750693004435,12.35029,134.43,134.37,7.4385]
[1750693004935,12.35029,134.43,134.38,7.4383]
[1750693005239,7.4376,134.4,134.38,7.4383]
[1750693008638,12.35029,134.43,134.37,7.4387]
[1750693008639,7.4382,134.39,134.37,7.4387]
[1750693008840,12.35029,134.43,134.34,55.55029]
[1750693009139,7.4393,134.37,134.34,62.99069]
[1750693009336,7.4393,134.37,134.34,55.55029]
[1750693010036,7.4387,134.38,134.34,55.55029]
[1750693010232,12.35029,134.41,134.34,55.55029]
[1750693010437,7.4389,134.38,134.35,7.4398]
[1750693011237,7.4391,134.37,134.35,7.4398]
[1750693011534,43.22,134.4,134.34,43.2]
[1750693011843,7.4405,134.35,134.32,12.35029]
[1750693012431,7.4399,134.36,134.32,12.35029]
[1750693012736,12.35029,134.39,134.32,12.35029]
[1750693013131,7.4404,134.35,134.32,12.35029]
[1750693013334,12.35029,134.39,134.31,43.22]
[1750693013535,7.4411,134.34,134.31,50.662]
[1750693013734,7.4411,134.34,134.31,43.22]
[1750693014233,7.4411,134.34,134.31,50.662]
[1750693014432,7.4411,134.34,134.31,43.22]
[1750693014740,12.35029,134.37,134.32,7.4415]
[1750693014741,7.4404,134.35,134.32,7.4415]
[1750693014940,2.4935,134.38,134.32,12.35029]
[1750693015237,2.4935,134.38,134.32,21.59693551]
[1750693016032,7.4398,134.36,134.32,21.59693551]
[1750693016440,7.4398,134.36,134.34,7.4404]
[1750693016641,45.6967,134.4,134.33,9.24664551]
[1750693017037,43.22,134.4,134.37,7.439]
[1750693017341,43.22,134.4,134.34,21.59693551]
[1750693018140,7.4387,134.38,134.35,7.4396]
[1750693018938,43.22,134.4,134.34,7.4404]
[1750693019443,7.4396,134.36,134.34,7.4404]
[1750693019940,7.4393,134.37,134.34,7.4404]
[1750693020142,43.22,134.4,134.32,21.59693551]
[1750693020343,43.22,134.4,134.33,9.24664551]
[1750693020643,12.35029,134.39,134.33,9.24664551]
[1750693020840,12.35029,134.35,134.3,9.24664551]
[1750693021143,7.4426,134.31,134.29,7.4432]
[1750693021438,7.4426,134.31,134.28,9.24664551]
[1750693021643,7.4426,134.31,134.29,7.4433]
[1750693021842,7.443,134.3,134.28,9.24664551]
[1750693022036,55.31029,134.34,134.26,9.24664551]
[1750693022037,12.35029,134.32,134.26,9.24664551]
[1750693022233,12.35029,134.32,134.25,54.67024551]
[1750693022444,7.4432,134.3,134.25,54.67024551]
[1750693022645,12.35029,134.32,134.26,7.4448]
[1750693022845,7.444,134.28,134.25,52.20664551]
[1750693023344,2.4248,134.32,134.25,42.96]
[1750693023543,2.4248,134.32,134.25,52.20664551]
[1750693023742,17.06279,134.33,134.29,7.4431]
[1750693023939,14.66909,134.33,134.29,7.4431]
[1750693024142,7.4422,134.32,134.29,7.4431]
[1750693024337,14.66909,134.33,134.29,7.4431]
[1750693024839,7.4424,134.31,134.29,7.4431]
[1750693025245,7.442,134.32,134.3,7.4427]
[1750693025446,42.96,134.34,134.26,24.05073551]
[1750693025838,50.4009,134.34,134.31,7.442]
[1750693026038,50.4009,134.34,134.26,24.05073551]
[1750693026039,42.96,134.34,134.26,24.05073551]
[1750693026438,50.4009,134.34,134.31,7.4423]
[1750693026643,42.96,134.34,134.31,7.4423]
[1750693027443,7.4415,134.33,134.3,7.4426]
[1750693027941,57.70169,134.37,134.29,42.98]
[1750693028446,7.4406,134.35,134.32,7.4415]
[1750693029047,12.35029,134.33,134.28,9.24664551]
[1750693029348,55.33029,134.33,134.26,2.4538]
[1750693029851,55.33029,134.33,134.26,14.80409]
[1750693030147,7.4427,134.31,134.28,7.4437]
[1750693030348,7.4427,134.31,134.26,14.80409]
[1750693030537,55.33029,134.33,134.26,14.80409]
[1750693030848,12.35029,134.35,134.26,14.80409]
[1750693031250,7.4421,134.32,134.29,7.4432]
[1750693031751,7.4424,134.31,134.28,7.4437]
[1750693031943,42.98,134.36,134.26,14.80409]
[1750693032249,12.35029,134.35,134.26,14.80409]
[1750693032450,7.4415,134.33,134.3,7.4426]
[1750693032750,42.98,134.36,134.28,12.35029]
[1750693033048,7.4394,134.37,134.34,7.4404]
[1750693033449,7.4394,134.37,134.32,12.35029]
[1750693033644,7.4387,134.38,134.32,17.33079]